bitfinex/quotes_SOLUSD_20240808
["timestamp","ask_amount","ask_price","bid_price","bid_amount"]
[1723075742325,260.4487,146.02,145.86,86.35697775]
[1723075742627,7.16441377,145.96,145.88,6.4873]
[1723075742806,276.6708,146.07,145.89,65.34]
[1723075743128,7.16378687,146.01,145.89,65.34]
[1723075743303,1.3143795,146.05,145.9,20.0]
[1723075743498,14.82384899,146.05,145.91,65.34]
[1723075743695,0.8143795,146.05,145.91,65.34]
[1723075744397,0.8143795,146.05,145.93,50.7506]
[1723075744708,0.8143795,146.05,145.96,35.6]
[1723075745025,0.8143795,146.05,145.98,6.5323]
[1723075745232,7.3431,146.14,145.99,21.53926089]
[1723075745522,0.5,146.13,145.99,20.17]
[1723075745721,6.8446,146.1,145.99,20.17]
[1723075745898,6.8442,146.11,145.99,20.17]
[1723075746101,7.15784785,146.14,146.0,65.17]
[1723075746302,7.65784785,146.14,146.01,20.0]
[1723075746622,7.65784785,146.14,145.98,6.5323]
[1723075746623,6.8451,146.09,145.98,6.5323]
[1723075746808,6.8449,146.1,145.99,20.0]
[1723075746996,6.8447,146.1,145.99,20.0]
[1723075747201,7.15784785,146.14,145.98,6.5323]
[1723075747202,0.5,146.09,145.98,6.5323]
[1723075747508,0.5,146.09,145.93,15.1506]
[1723075747509,6.8489,146.01,145.93,15.1506]
[1723075747700,0.5,146.06,145.93,15.1506]
[1723075747905,0.5,146.06,145.93,35.1506]
[1723075748125,0.67,146.08,145.93,15.1506]
[1723075748425,0.17,146.07,145.93,16.51917353]
[1723075748608,6.848,146.03,145.93,15.1506]
[1723075748799,0.5,146.07,145.93,15.1506]
[1723075748800,6.8473,146.05,145.93,15.1506]
[1723075749000,45.5,146.04,145.93,15.1506]
[1723075749207,0.17,146.03,145.93,15.1506]
[1723075749404,6.8512,145.96,145.85,6.451]
[1723075749720,0.67,146.03,145.84,16.4003]
[1723075749721,20.5,145.95,145.84,16.4003]
[1723075750030,0.5,145.95,145.84,16.4003]
[1723075750200,0.17,146.02,145.85,20.0]
[1723075750395,6.8493,146.0,145.84,16.4003]
[1723075750622,6.8515,145.96,145.84,16.4003]
[1723075750918,6.8525,145.94,145.84,16.4003]
[1723075751130,0.5,145.93,145.84,16.4003]
[1723075751315,0.5,145.98,145.84,16.4003]
[1723075751519,100.6,146.09,145.84,16.4003]
[1723075751520,6.8483,146.03,145.86,20.0]
[1723075751717,0.5,146.02,145.86,20.0]
[1723075752011,395.9483,146.03,145.88,20.0]
[1723075752012,389.1,146.03,145.88,20.0]
[1723075752212,642.7,146.06,145.9,20.0]
[1723075752438,642.7,146.06,145.91,85.34]
[1723075752619,17.1089,146.13,145.93,20.0]
[1723075752620,35.6827,146.12,145.93,20.0]
[1723075752825,35.6827,146.12,145.94,71.6353]
[1723075752826,7.3451,146.09,145.94,71.6353]
[1723075753314,7.3451,146.09,145.94,107.2353]
[1723075753512,6.8471,146.05,145.94,61.8953]
[1723075753699,0.5,146.09,145.94,26.2953]
[1723075754122,6.8471,146.05,145.94,26.2953]
[1723075754301,0.5,146.04,145.87,6.0111]
[1723075754509,0.5,146.04,145.88,20.0]
[1723075754711,6.8513,145.96,145.87,6.0111]
[1723075755023,6.8494,146.0,145.87,6.0111]
[1723075755333,0.5,146.01,145.87,6.0111]
[1723075755509,7.3488,146.01,145.87,6.0111]
[1723075755703,45.34,146.0,145.87,6.0111]
[1723075755903,52.1893,146.0,145.87,6.0111]
[1723075756103,52.1893,146.0,145.8,2.75873603]
[1723075756104,6.8535,145.91,145.8,2.75873603]
[1723075756320,0.5,145.98,145.8,20.0]
[1723075756511,52.1911,145.97,145.8,20.0]
[1723075756716,52.1911,145.97,145.82,20.0]
[1723075756717,45.67,145.97,145.82,20.0]
[1723075756928,6.8523,145.94,145.81,43.4]
[1723075757226,45.84,145.93,145.77,7.1447082]
[1723075757470,26.2294,146.07,145.83,20.0]
[1723075757631,20.5,146.03,145.86,16.6654]
[1723075757930,20.58,146.02,145.86,16.6654]
[1723075758138,6.8516,145.96,145.86,16.6654]
[1723075758318,6.8534,145.92,145.78,16.6654]
[1723075760638,20.5,145.99,145.86,20.0]
[1723075760838,21.08,146.05,145.87,45.34]
[1723075761129,6.8483,146.02,145.88,26.2711]
[1723075761346,0.5,146.01,145.89,16.4306]
[1723075762246,0.34,146.0,145.88,6.2711]
[1723075762443,0.34,146.0,145.81,20.0]
[1723075762444,6.8522,145.94,145.83,15.5222]
[1723075762625,20.34,146.0,145.83,15.5222]
[1723075762626,45.5,145.93,145.83,15.5222]
[1723075762828,0.67,145.92,145.83,15.5222]
[1723075763150,7.0239,145.91,145.83,15.5222]
[1723075763348,45.67,145.9,145.77,22.9406082]
[1723075763545,45.17,145.9,145.77,16.21991819]
[1723075763749,45.0,145.89,145.77,15.7959]
[1723075763925,0.17,145.9,145.77,15.7959]
[1723075764131,45.17,145.91,145.77,15.7959]
[1723075764635,0.67,145.9,145.77,15.7959]
[1723075764966,0.17,145.89,145.77,15.7959]
[1723075765256,45.0,145.91,145.78,40.0]
[1723075765460,45.0,145.91,145.78,20.0]
[1723075765461,0.17,145.9,145.78,20.0]
[1723075765619,45.0,145.91,145.78,20.0]
[1723075765826,7.0242,145.9,145.78,20.0]
[1723075766021,45.5,145.91,145.78,20.0]
[1723075766022,45.0,145.91,145.78,20.0]
[1723075766251,45.0,145.91,145.79,0.17]
[1723075766920,389.1,145.92,145.78,20.0]
[1723075767125,434.6,145.91,145.78,20.0]
[1723075767347,7.0244,145.9,145.78,20.0]
[1723075767531,45.0,145.89,145.78,20.0]
[1723075767738,51.8544,145.89,145.78,20.0]
[1723075767937,45.0,145.89,145.78,20.0]
[1723075768538,45.5,145.89,145.78,20.0]
[1723075768847,45.0,145.89,145.78,20.0]
[1723075769248,389.1,145.91,145.78,20.0]
[1723075769749,6.8545,145.89,145.78,20.0]
[1723075770652,389.1,145.9,145.77,15.7959]
[1723075770858,434.1,145.9,145.77,15.7959]
[1723075771056,389.1,145.9,145.79,20.0]
[1723075771257,389.1,145.9,145.8,20.0]
[1723075771432,389.1,145.9,145.77,15.7959]
[1723075771636,389.1,145.96,145.81,20.0]
[1723075771853,259.7585,146.0,145.81,20.0]
[1723075771854,389.1,145.99,145.82,20.17]
[1723075772158,0.5,145.98,145.82,20.0]
[1723075772366,7.64248544,145.98,145.83,0.17]
[1723075772534,6.8512,145.96,145.83,0.17]
[1723075772853,0.5,145.96,145.82,20.0]
[1723075773058,0.5,145.95,145.77,35.7959]
[1723075773242,0.5,145.95,145.78,65.34]
[1723075773447,6.853,145.92,145.78,65.34]
[1723075773827,7.0235,145.91,145.78,65.34]
[1723075774143,434.1,145.9,145.77,15.7959]
[1723075774355,6.8554,145.87,145.77,15.7959]
[1723075774557,0.84,145.89,145.77,15.7959]
[1723075774854,0.84,145.89,145.76,6.5623]
[1723075774855,6.8559,145.86,145.76,6.5623]
[1723075775031,45.67,145.85,145.76,6.5623]
[1723075775373,434.77,145.85,145.75,0.4685052]
[1723075775669,6.8592,145.79,145.75,0.4685052]
[1723075775828,0.5,145.78,145.75,0.4685052]
[1723075777368,0.34,145.77,145.75,0.4685052]
[1723075777664,6.8605,145.76,145.75,0.4685052]
[1723075777842,52.7005,145.76,145.75,0.4685052]
[1723075778163,110.4319,145.76,145.75,0.4685052]
[1723075778351,72.2005,145.76,145.75,0.4685052]
[1723075778555,72.7005,145.76,145.75,0.4685052]
[1723075778738,93.2805,145.76,145.75,0.4685052]
[1723075778935,20.58,145.72,145.59,0.9022443]
[1723075779137,454.94,145.71,145.59,0.9022443]
[1723075779439,0.84,145.7,145.59,0.9022443]
[1723075779834,6.8653,145.66,145.59,0.9022443]
[1723075780039,389.6,145.69,145.59,0.9022443]
[1723075780229,454.44,145.68,145.59,0.9022443]
[1723075780451,0.5,145.67,145.59,0.9022443]
[1723075780629,0.17,145.66,145.59,0.9022443]
[1723075780832,0.34,145.66,145.59,0.9022443]
[1723075781032,65.0,145.66,145.59,0.9022443]
[1723075781228,454.27,145.68,145.59,0.9022443]
[1723075781461,0.17,145.67,145.59,0.9022443]
[1723075781665,7.5348,145.67,145.59,0.9022443]
[1723075781872,45.17,145.66,145.59,0.9022443]
[1723075782049,7.5357,145.65,145.59,0.9022443]
[1723075782237,45.0,145.64,145.59,0.9022443]
[1723075782558,7.0367,145.63,145.59,0.9022443]
[1723075782749,6.8681,145.6,145.59,0.9022443]
[1723075782939,52.2081,145.6,145.59,0.9022443]
[1723075783133,72.7081,145.6,145.59,0.9022443]
[1723075785660,406.2716,145.59,145.44,6.3825]
[1723075785849,454.94,145.58,145.43,0.9022443]
[1723075786054,518.92,145.58,145.43,0.9022443]
[1723075786361,6.8728,145.5,145.43,0.9022443]
[1723075786565,45.84,145.49,145.43,0.9022443]
[1723075787138,45.0,145.5,145.43,0.9022443]
[1723075787542,0.17,145.49,145.43,0.9022443]
[1723075787865,0.5,145.48,145.43,0.9022443]
[1723075788052,0.17,145.49,145.43,0.9022443]
[1723075788252,0.34,145.49,145.43,0.9022443]
[1723075788752,45.0,145.5,145.43,0.9022443]
[1723075789459,7.7126,145.51,145.43,0.9022443]
[1723075789460,0.17,145.51,145.43,0.9022443]
[1723075789667,0.17,145.51,145.44,1.29656791]
[1723075789838,389.1,145.54,145.43,0.9022443]
[1723075790565,0.5,145.53,145.43,0.9022443]
[1723075790940,6.8723,145.52,145.43,0.9022443]
[1723075791145,6.8723,145.51,145.43,0.9022443]
[1723075791351,389.1,145.54,145.43,0.9022443]
[1723075791554,0.5,145.53,145.43,0.9022443]
[1723075791747,45.5,145.53,145.43,0.9022443]
[1723075792052,0.5,145.53,145.43,0.9022443]
[1723075792257,20.5,145.57,145.43,0.9022443]
[1723075792569,389.1,145.56,145.43,0.9022443]
[1723075792865,20.5,145.55,145.43,0.9022443]
[1723075793056,6.8725,145.51,145.43,0.9022443]
[1723075793252,45.0,145.5,145.43,0.9022443]
[1723075793457,0.17,145.49,145.43,0.9022443]
[1723075793662,0.67,145.49,145.43,0.9022443]
[1723075793861,0.17,145.49,145.43,0.9022443]
[1723075794373,0.34,145.49,145.43,0.9022443]
[1723075794540,0.84,145.49,145.43,0.9022443]
[1723075794736,0.5,145.48,145.43,0.9022443]
[1723075794956,0.34,145.47,145.43,0.9022443]
[1723075795144,45.0,145.5,145.43,0.9022443]
[1723075795356,0.67,145.49,145.43,0.9022443]
[1723075795561,7.0438,145.48,145.43,0.9022443]
[1723075795760,6.8752,145.45,145.43,0.9022443]
[1723075795961,45.34,145.44,145.43,0.9022443]
[1723075797172,52.2156,145.44,145.43,0.9022443]
[1723075797353,45.34,145.44,145.43,0.9022443]
[1723075798042,45.84,145.44,145.43,0.9022443]
[1723075798569,389.1,145.45,145.43,0.9022443]
[1723075799081,6.8725,145.51,145.43,0.9022443]
[1723075799279,0.5,145.51,145.43,0.9022443]
[1723075799880,409.68,145.53,145.43,0.9022443]
[1723075800081,0.5,145.52,145.43,0.9022443]
[1723075800381,45.5,145.52,145.43,0.9022443]
[1723075800768,40.58,145.51,145.43,0.9022443]
[1723075800967,6.8738,145.48,145.43,0.9022443]
[1723075801287,65.67,145.47,145.43,0.9022443]
[1723075801460,6.8756,145.45,145.43,0.9022443]
[1723075801660,389.1,145.49,145.43,0.9022443]
[1723075802269,6.8746,145.47,145.43,0.9022443]
[1723075802466,389.1,145.49,145.43,0.9022443]
[1723075802773,6.8744,145.47,145.43,0.9022443]
[1723075803085,389.1,145.49,145.43,0.9022443]
[1723075803382,0.17,145.48,145.43,0.9022443]
[1723075804188,20.67,145.48,145.43,0.9022443]
[1723075804864,45.17,145.47,145.43,0.9022443]
[1723075805379,20.67,145.48,145.43,0.9022443]
[1723075805591,45.17,145.47,145.43,0.9022443]
[1723075805753,0.17,145.46,145.43,0.9022443]
[1723075806182,7.5448,145.46,145.43,0.9022443]
[1723075806392,45.17,145.45,145.43,0.9022443]
[1723075806578,0.17,145.45,145.43,0.9022443]
[1723075806760,0.5,145.45,145.43,0.9022443]
[1723075806955,7.3752,145.45,145.43,0.9022443]
[1723075807268,6.8747,145.46,145.43,0.9022443]
[1723075807454,6.8756,145.44,145.43,0.9022443]
[1723075807658,389.1,145.46,145.43,0.9022443]
[1723075807659,389.1,145.46,145.43,0.7059108]
[1723075807855,7.08076641,145.49,145.43,0.7059108]
[1723075808475,0.5,145.51,145.43,0.7059108]
[1723075808669,20.5,145.51,145.43,0.7059108]
[1723075809268,45.34,145.5,145.43,0.7059108]
[1723075809495,20.0,145.49,145.43,0.7059108]
[1723075809786,0.17,145.48,145.43,0.7059108]
[1723075810007,7.57535462,145.52,145.43,0.7059108]
[1723075810172,0.5,145.51,145.43,0.7059108]
[1723075810983,7.3728,145.51,145.43,0.7059108]
[1723075811190,20.0,145.5,145.43,0.7059108]
[1723075811393,0.17,145.49,145.43,0.7059108]
[1723075811691,0.5,145.52,145.44,6.0624]
[1723075811991,389.1,145.53,145.44,6.0624]
[1723075812158,389.1,145.56,145.45,35.449]
[1723075812364,253.6,145.61,145.46,46.42219075]
[1723075812365,10.76880171,145.61,145.46,46.42219075]
[1723075812670,6.1134,145.64,145.46,46.42219075]
[1723075812671,389.1,145.64,145.48,6.3763]
[1723075812991,6.8698,145.57,145.48,6.3763]
[1723075813166,0.5,145.56,145.48,6.3763]
[1723075813570,0.5,145.6,145.48,6.3763]
[1723075813777,0.5,145.6,145.49,20.0]
[1723075814306,6.8699,145.57,145.48,6.3763]
[1723075814465,0.5,145.56,145.48,6.3763]
[1723075814780,7.07426906,145.62,145.49,21.37413997]
[1723075814970,389.1,145.64,145.5,0.17]
[1723075815175,389.1,145.64,145.52,15.0703]
[1723075815392,10.76312355,145.67,145.53,21.71333701]
[1723075815593,0.5,145.66,145.53,20.34]
[1723075815801,28.19117019,145.66,145.53,20.0]
[1723075815971,28.19117019,145.66,145.52,15.0703]
[1723075815972,6.8686,145.59,145.52,15.0703]
[1723075816179,11.2627845,145.64,145.52,15.0703]
[1723075816392,0.5,145.64,145.52,15.0703]
[1723075816594,6.8667,145.63,145.52,15.0703]
[1723075816796,45.5,145.62,145.52,15.0703]
[1723075816981,0.5,145.62,145.52,15.0703]
[1723075817182,6.8696,145.57,145.52,15.0703]
[1723075817377,45.0,145.56,145.48,6.3763]
[1723075817579,389.1,145.61,145.48,6.3763]
[1723075817901,389.1,145.61,145.49,20.0]
[1723075818074,21.08,145.6,145.48,6.3763]
[1723075818274,0.5,145.6,145.48,6.3763]
[1723075818478,6.8715,145.53,145.48,6.3763]
[1723075818682,389.1,145.59,145.48,6.3763]
[1723075818683,0.5,145.52,145.48,6.3763]
[1723075818979,0.5,145.56,145.48,6.3763]
[1723075819195,20.5,145.57,145.48,6.3763]
[1723075819501,0.34,145.56,145.48,6.3763]
[1723075820008,389.1,145.59,145.48,6.3763]
[1723075820300,395.9659,145.65,145.49,65.0]
[1723075820506,395.9659,145.65,145.5,0.17]
[1723075820807,0.5,145.64,145.5,0.34]
[1723075821493,389.1,145.65,145.51,1.1055474]
[1723075821695,389.1,145.65,145.53,16.5519]
[1723075821907,389.1,145.65,145.54,1.17778676]
[1723075822106,395.9658,145.65,145.53,16.5519]
[1723075822406,6.8681,145.6,145.53,16.5519]
[1723075822613,6.8676,145.62,145.53,16.5519]
[1723075822790,20.5,145.61,145.53,16.5519]
[1723075823112,0.5,145.61,145.53,16.5519]
[1723075823292,0.5,145.6,145.53,16.5519]
[1723075823491,389.1,145.65,145.53,16.5519]
[1723075823492,0.5,145.64,145.53,16.5519]
[1723075823695,20.0,145.64,145.54,20.0]
[1723075823896,6.8668,145.63,145.54,20.0]
[1723075824091,6.869,145.59,145.53,16.5519]
[1723075824297,0.5,145.62,145.53,16.5519]
[1723075824298,389.1,145.61,145.53,16.5519]
[1723075824506,20.0,145.6,145.53,16.5519]
[1723075824791,45.17,145.59,145.53,16.5519]
[1723075824985,0.17,145.59,145.53,16.5519]
[1723075826989,6.8691,145.58,145.53,16.5519]
[1723075827217,45.34,145.57,145.48,22.1143]
[1723075827548,6.8723,145.52,145.48,22.1143]
[1723075827693,45.67,145.51,145.47,0.7059108]
[1723075827894,6.8735,145.49,145.47,0.7059108]
[1723075828098,0.5,145.48,145.47,0.7059108]
[1723075828405,52.7137,145.48,145.47,0.7059108]
[1723075828607,0.5,145.52,145.47,0.7059108]
[1723075828817,0.84,145.51,145.47,0.7059108]
[1723075829002,6.8732,145.5,145.47,0.7059108]
[1723075829208,45.84,145.49,145.47,0.7059108]
[1723075829396,45.34,145.49,145.47,0.7059108]
[1723075829793,45.0,145.48,145.47,0.7059108]
[1723075830614,20.0,145.52,145.47,0.7059108]
[1723075830832,45.34,145.51,145.47,0.7059108]
[1723075831398,6.2675,145.59,145.47,0.7059108]
[1723075831598,389.1,145.59,145.48,6.6142]
[1723075831820,395.9686,145.59,145.48,6.6142]
[1723075832028,6.871,145.54,145.48,6.6142]
[1723075832220,389.1,145.59,145.48,6.6142]
[1723075832552,0.5,145.58,145.48,6.6142]
[1723075832728,389.1,145.59,145.48,6.6142]
[1723075832933,6.8697,145.57,145.48,6.6142]
[1723075833100,6.8691,145.58,145.48,6.6142]
[1723075833306,6.8695,145.57,145.48,6.6142]
[1723075833502,45.84,145.56,145.48,6.6142]
[1723075833706,6.8715,145.53,145.47,0.7059108]
[1723075833909,45.34,145.52,145.47,0.7059108]
[1723075834128,0.5,145.51,145.47,0.7059108]
[1723075834309,26.8696,145.57,145.47,0.7059108]
[1723075834503,45.17,145.56,145.47,0.7059108]
[1723075835201,0.5,145.55,145.47,0.7059108]
[1723075835509,7.0409,145.54,145.47,0.7059108]
[1723075835721,0.17,145.53,145.47,0.7059108]
[1723075835931,0.5,145.52,145.47,0.7059108]
[1723075836113,0.34,145.51,145.47,0.7059108]
[1723075836313,6.8737,145.48,145.47,0.7059108]
[1723075836643,52.2137,145.48,145.47,0.7059108]
[1723075836936,45.34,145.48,145.47,0.7059108]
[1723075837110,395.9718,145.53,145.47,0.7059108]
[1723075837311,65.84,145.52,145.47,0.7059108]
[1723075837544,0.5,145.51,145.47,0.7059108]
[1723075837921,0.17,145.5,145.47,0.7059108]
[1723075838615,0.5,145.51,145.47,0.7059108]
[1723075839038,7.0428,145.5,145.47,0.7059108]
[1723075839334,45.67,145.49,145.47,0.7059108]
[1723075839539,0.17,145.48,145.47,0.7059108]
[1723075839712,7.5437,145.48,145.47,0.7059108]
[1723075839913,45.84,145.48,145.47,0.7059108]
[1723075840411,45.34,145.48,145.47,0.7059108]
[1723075841947,396.22990059,145.52,145.47,0.7059108]
[1723075842148,7.12990059,145.52,145.47,0.7059108]
[1723075842440,389.1,145.6,145.48,6.0198]
[1723075842648,6.8691,145.58,145.48,6.0198]
[1723075842825,0.5,145.59,145.48,6.0198]
[1723075843028,0.5,145.57,145.48,6.0198]
[1723075843946,6.8705,145.55,145.48,6.0198]
[1723075844122,45.0,145.54,145.48,6.0198]
[1723075844322,0.17,145.53,145.48,6.0198]
[1723075844736,0.67,145.53,145.47,0.7059108]
[1723075844930,27.5418,145.53,145.47,0.7059108]
[1723075845131,45.0,145.52,145.47,0.7059108]
[1723075845732,0.84,145.51,145.47,0.7059108]
[1723075846129,45.0,145.52,145.47,0.7059108]
[1723075846334,389.1,145.58,145.47,0.7059108]
[1723075846528,389.1,145.58,145.48,1.37430919]
[1723075846728,389.1,145.58,145.47,0.7059108]
[1723075846924,395.9694,145.58,145.47,0.7059108]
[1723075847237,0.5,145.57,145.47,0.7059108]
[1723075847567,395.9691,145.58,145.47,0.7059108]
[1723075848051,0.5,145.57,145.47,0.7059108]
[1723075848346,0.17,145.56,145.47,0.7059108]
[1723075848545,0.34,145.57,145.47,0.7059108]
[1723075848850,0.84,145.57,145.47,0.7059108]
[1723075849054,6.8708,145.55,145.47,0.7059108]
[1723075849253,0.67,145.54,145.47,0.7059108]
[1723075849456,0.17,145.53,145.47,0.7059108]
[1723075849752,7.3719,145.52,145.47,0.7059108]
[1723075849951,45.34,145.51,145.47,0.7059108]
[1723075850331,7.12814402,145.6,145.47,0.7059108]
[1723075850528,65.84,145.57,145.47,0.7059108]
[1723075850744,20.5,145.57,145.47,0.7059108]
[1723075850943,389.1,145.58,145.47,0.7059108]
[1723075851435,0.5,145.57,145.47,0.7059108]
[1723075851632,389.1,145.58,145.47,0.7059108]
[1723075852250,7.12814402,145.6,145.48,15.134]
[1723075852553,7.12814402,145.6,145.49,21.37422619]
[1723075852847,13.99634402,145.6,145.49,20.0]
[1723075853036,7.12814402,145.6,145.49,20.0]
[1723075853238,14.49624402,145.6,145.49,20.0]
[1723075853447,45.17,145.59,145.49,20.0]
[1723075854137,260.4662,145.64,145.5,6.1457]
[1723075854337,253.6,145.64,145.51,21.7139616]
[1723075854555,253.6,145.64,145.52,1.37384595]
[1723075854756,0.5,145.63,145.51,20.0]
[1723075855331,6.8678,145.61,145.51,20.0]
[1723075855632,0.5,145.63,145.51,20.0]
[1723075855853,267.60252676,145.64,145.51,20.0]
[1723075856452,0.5,145.63,145.51,20.0]
[1723075856749,267.60212676,145.64,145.51,20.0]
[1723075856930,20.5,145.63,145.51,20.0]
[1723075857127,253.6,145.64,145.52,16.3136]
[1723075857342,389.1,145.71,145.54,6.0307]
[1723075857585,389.1,145.71,145.55,65.84304414]
[1723075857862,6.8637,145.7,145.55,65.84304414]
[1723075858031,0.5,145.7,145.55,20.0]
[1723075858744,0.34,145.69,145.55,21.37362403]
[1723075859155,0.5,145.68,145.55,20.0]
[1723075859472,0.34,145.67,145.55,20.0]
[1723075859678,6.8657,145.65,145.55,20.0]
[1723075859845,45.34,145.64,145.55,20.0]
[1723075860672,389.1,145.69,145.55,20.0]
[1723075860861,389.1,145.69,145.56,17.64129871]
[1723075861045,389.1,145.69,145.58,6.1388]
[1723075861244,389.1,145.69,145.59,21.71312705]
[1723075861565,389.1,145.69,145.59,20.0]
[1723075862269,389.1,145.69,145.58,6.1388]
[1723075862599,20.5,145.68,145.58,6.1388]
[1723075862761,0.5,145.67,145.58,6.1388]
[1723075863072,396.25307209,145.69,145.58,6.1388]
[1723075863385,389.1,145.69,145.58,6.1388]
[1723075863872,302.0977612,145.72,145.58,6.1388]
[1723075864053,6.8643,145.69,145.59,20.0]
[1723075864446,6.8635,145.7,145.59,20.0]
[1723075864770,6.8644,145.68,145.59,20.0]
[1723075864959,65.17,145.69,145.59,20.0]
[1723075864960,45.67,145.67,145.59,20.0]
[1723075865162,20.0,145.66,145.58,6.1388]
[1723075865366,45.67,145.65,145.58,6.1388]
[1723075865554,45.17,145.65,145.58,6.1388]
[1723075865866,7.3644,145.68,145.58,6.1388]
[1723075865867,0.5,145.68,145.58,6.1388]
[1723075866072,389.1,145.7,145.58,6.1388]
[1723075866262,0.5,145.69,145.58,6.1388]
[1723075866469,7.3639,145.69,145.58,6.1388]
[1723075866671,396.25263862,145.7,145.59,20.0]
[1723075866850,389.1,145.7,145.59,20.0]
[1723075867366,0.67,145.69,145.59,20.0]
[1723075867754,7.5338,145.69,145.59,20.0]
[1723075868173,0.67,145.69,145.58,6.1388]
[1723075868354,20.0,145.68,145.58,6.1388]
[1723075868671,0.67,145.69,145.58,6.1388]
[1723075868672,45.17,145.67,145.58,6.1388]
[1723075868980,0.34,145.66,145.58,6.1388]
[1723075869150,0.17,145.66,145.59,20.0]
[1723075869357,45.0,145.68,145.6,0.66541852]
[1723075869650,45.0,145.69,145.59,20.0]
[1723075869849,0.17,145.68,145.59,20.0]
[1723075870053,264.3611612,145.72,145.59,20.0]
[1723075870355,17.91109115,145.72,145.61,15.9657]
[1723075870565,17.91109115,145.72,145.63,26.4516]
[1723075870885,395.9573,145.83,145.67,20.0]
[1723075871177,0.5,145.82,145.69,15.9657]
[1723075871376,7.64686778,145.82,145.7,20.0]
[1723075871876,0.5,145.83,145.7,20.0]
[1723075872060,0.5,145.82,145.7,20.0]
[1723075872262,7.64679525,145.82,145.7,20.0]
[1723075872571,6.8587,145.8,145.7,20.0]
[1723075872749,7.3587,145.8,145.7,20.0]
[1723075872950,7.14679525,145.82,145.7,20.0]
[1723075872951,0.5,145.79,145.7,20.0]
[1723075873244,0.17,145.78,145.69,15.9657]
[1723075873446,6.8607,145.76,145.69,15.9657]
[1723075873748,45.67,145.75,145.69,15.9657]
[1723075873969,0.17,145.74,145.69,15.9657]
[1723075874304,0.5,145.73,145.66,6.4516]
[1723075874603,0.34,145.72,145.66,6.4516]
[1723075874774,0.5,145.71,145.66,6.4516]
[1723075874972,0.34,145.7,145.64,15.969]
[1723075875189,0.34,145.7,145.53,63.4]
[1723075875190,409.68,145.69,145.6,15.969]
[1723075875377,0.67,145.68,145.6,15.969]
[1723075875581,45.34,145.68,145.6,15.969]
[1723075875897,45.0,145.68,145.6,15.969]
[1723075876267,0.17,145.67,145.6,15.969]
[1723075876467,45.0,145.68,145.6,15.969]
[1723075876675,389.1,145.69,145.6,15.969]
[1723075876890,6.8611,145.75,145.6,15.969]
[1723075877101,253.6,145.78,145.62,6.2126]
[1723075877379,0.5,145.76,145.62,6.2126]
[1723075877697,6.863,145.71,145.62,6.2126]
[1723075877999,389.6,145.7,145.6,15.969]
[1723075878196,6.8652,145.67,145.6,15.969]
[1723075878367,45.34,145.66,145.6,15.969]
[1723075878800,45.0,145.65,145.6,15.969]
[1723075878973,0.34,145.64,145.58,6.6327]
[1723075879177,0.17,145.64,145.58,6.6327]
[1723075879498,52.0358,145.65,145.58,6.6327]
[1723075879695,0.67,145.64,145.58,6.6327]